bitfinex-derivatives/quotes_SOLF0:USTF0_20250113
["timestamp","ask_amount","ask_price","bid_price","bid_amount"]
[1736772059861,10.355,175.64,175.49,36.44057083]
[1736772060065,2.8505,175.61,175.55,2.8514]
[1736772060269,36.44057083,175.63,175.49,36.44057083]
[1736772060567,36.44057083,175.6,175.46,36.44057083]
[1736772060768,2.8514,175.56,175.49,2.8523]
[1736772061070,36.44057083,175.6,175.46,36.44057083]
[1736772061463,22.47758991,175.59,175.49,2.8524]
[1736772061665,22.47758991,175.59,175.44,22.47758991]
[1736772061864,5.4877,175.58,175.44,22.47758991]
[1736772062072,22.47758991,175.62,175.47,22.47758991]
[1736772062371,10.5166,175.63,175.5,22.47758991]
[1736772062668,13.3669,175.63,175.5,22.47758991]
[1736772062870,2.4766,175.67,175.56,22.47758991]
[1736772063066,7.86,175.73,175.59,22.47758991]
[1736772063672,5.4849,175.75,175.69,2.849]
[1736772063861,5.4849,175.75,175.62,22.47758991]
[1736772063862,2.6366,175.75,175.62,22.47758991]
[1736772064272,2.8486,175.73,175.62,22.47758991]
[1736772064568,2.6366,175.75,175.62,22.47758991]
[1736772064774,5.4848,175.75,175.68,2.8493]
[1736772065070,22.47758991,175.8,175.65,22.47758991]
[1736772065367,2.8474,175.8,175.74,2.8484]
[1736772065574,7.8224,175.82,175.71,36.41247226]
[1736772065772,7.8224,175.82,175.77,2.8479]
[1736772065969,7.84,175.88,175.74,36.41247226]
[1736772066266,7.84,175.88,175.77,36.41247226]
[1736772066469,36.41247226,175.92,175.77,36.41247226]
[1736772067175,15.6624,175.93,175.8,36.41247226]
[1736772067176,7.8224,175.93,175.8,36.41247226]
[1736772067366,7.8224,175.93,175.87,2.8462]
[1736772067567,7.8224,175.93,175.8,36.41247226]
[1736772067769,36.41247226,175.95,175.73,7.84]
[1736772067971,36.41247226,175.98,175.88,2.8461]
[1736772068167,36.41247226,175.98,175.83,36.41247226]
[1736772068367,36.41247226,175.95,175.85,2.8464]
[1736772068670,36.41247226,175.95,175.79,36.41247226]
[1736772069065,2.8456,175.92,175.83,2.8468]
[1736772069274,2.8456,175.92,175.79,36.41247226]
[1736772069467,7.82,175.91,175.78,97.78]
[1736772069673,36.41247226,175.86,175.76,2.8479]
[1736772069869,36.41247226,175.86,175.69,10.3146]
[1736772070165,36.41247226,175.83,175.68,36.41247226]
[1736772070468,2.5645,175.82,175.68,36.41247226]
[1736772070674,36.41247226,175.8,175.67,97.76]
[1736772071074,36.41247226,175.77,175.62,36.41247226]
[1736772071463,36.41247226,175.77,175.68,2.8493]
[1736772071670,36.41247226,175.77,175.62,36.41247226]
[1736772071872,2.8485,175.74,175.67,2.8495]
[1736772072173,2.8485,175.74,175.62,36.41247226]
[1736772072368,7.82,175.75,175.62,36.41247226]
[1736772072672,2.8487,175.73,175.62,36.41247226]
[1736772072870,7.82,175.75,175.62,36.41247226]
[1736772073065,2.8491,175.7,175.63,2.8502]
[1736772073271,36.41247226,175.74,175.63,2.8502]
[1736772073569,2.5969,175.73,175.62,36.41247226]
[1736772073975,2.5969,175.73,175.59,36.41247226]
[1736772074373,2.8492,175.69,175.59,36.41247226]
[1736772074975,2.5969,175.73,175.59,36.41247226]
[1736772075172,36.41247226,175.71,175.56,85.89080646]
[1736772075966,2.8491,175.7,175.63,2.8501]
[1736772076276,2.5969,175.73,175.62,36.41247226]
[1736772076471,36.41247226,175.71,175.56,85.89080646]
[1736772076776,2.8495,175.68,175.61,2.8505]
[1736772076979,36.41247226,175.71,175.61,2.8505]
[1736772077372,2.5969,175.73,175.59,36.41247226]
[1736772077679,2.5969,175.73,175.56,49.4783342]
[1736772077680,2.5969,175.73,175.62,36.41247226]
[1736772077875,5.4454,175.73,175.67,2.8495]
[1736772078070,2.5969,175.73,175.62,36.41247226]
[1736772078583,2.5969,175.73,175.67,2.8495]
[1736772079379,7.82,175.75,175.67,2.8495]
[1736772080185,2.8487,175.73,175.67,2.8495]
[1736772080787,7.72,175.76,175.63,36.41247226]
[1736772081079,2.687,175.77,175.63,36.41247226]
[1736772081282,7.72,175.78,175.66,36.41247226]
[1736772081490,2.6104,175.8,175.69,36.41247226]
[1736772081690,36.41247226,175.78,175.63,36.41247226]
[1736772083089,2.8486,175.73,175.68,2.8494]
[1736772083292,2.8486,175.73,175.63,36.41247226]
[1736772083689,36.41247226,175.78,175.63,36.41247226]
[1736772083994,36.41247226,175.72,175.59,36.41247226]
[1736772084196,44.11247226,175.72,175.57,97.76]
[1736772084391,36.41247226,175.69,175.57,97.76]
[1736772084784,2.4394,175.71,175.56,36.41247226]
[1736772084988,2.4394,175.71,175.59,36.41247226]
[1736772085295,2.4394,175.71,175.56,36.41247226]
[1736772085785,24.88794343,175.71,175.56,22.44854343]
[1736772085985,24.88794343,175.71,175.62,2.8503]
[1736772086187,2.4394,175.71,175.59,22.44854343]
[1736772086495,7.7,175.73,175.62,22.44854343]
[1736772086691,2.8489,175.72,175.66,2.8496]
[1736772087088,2.8489,175.71,175.66,2.8496]
[1736772087288,7.7,175.73,175.66,2.8496]
[1736772087592,7.7,175.73,175.59,22.44854343]
[1736772087798,2.8493,175.69,175.59,22.44854343]
[1736772087998,7.7,175.73,175.66,2.8496]
[1736772088194,7.7,175.73,175.59,22.44854343]
[1736772088791,2.8498,175.65,175.56,22.44854343]
[1736772088993,22.44854343,175.68,175.58,2.851]
[1736772089199,2.6527,175.67,175.58,2.851]
[1736772089501,2.6527,175.67,175.55,97.8]
[1736772089698,2.6527,175.67,175.56,36.48929923]
[1736772090001,36.48929923,175.71,175.56,36.48929923]
[1736772090196,36.48929923,175.68,175.55,97.8]
[1736772090602,2.85,175.65,175.59,2.8508]
[1736772090802,36.48929923,175.68,175.55,97.8]
[1736772091002,36.48929923,175.68,175.51,4.0947]
[1736772091299,36.48929923,175.62,175.47,36.48929923]
[1736772091503,13.006,175.61,175.47,36.48929923]
[1736772092001,7.66,175.61,175.5,36.48929923]
[1736772092193,7.66,175.61,175.53,36.48929923]
[1736772092397,2.6848,175.66,175.53,36.48929923]
[1736772093001,2.85,175.64,175.59,2.8508]
[1736772093203,2.85,175.64,175.53,36.48929923]
[1736772093399,10.2544,175.67,175.53,36.48929923]
[1736772093601,2.8498,175.66,175.53,36.48929923]
[1736772093900,10.2544,175.67,175.53,36.48929923]
[1736772094304,2.8502,175.63,175.57,2.8511]
[1736772094600,10.2544,175.67,175.53,36.48929923]
[1736772096708,2.8501,175.64,175.6,2.8506]
[1736772098699,2.8501,175.64,175.5,7.66]
[1736772098700,10.5097,175.67,175.56,36.48929923]
[1736772098901,7.66,175.67,175.56,36.48929923]
[1736772099098,2.85,175.65,175.6,2.8506]
[1736772099301,7.66,175.67,175.6,2.8506]
[1736772099707,2.85,175.65,175.61,2.8503]
[1736772099909,7.66,175.67,175.56,36.48929923]
[1736772100305,2.8502,175.63,175.59,2.8507]
[1736772100809,2.8501,175.64,175.6,2.8505]
[1736772101209,7.66,175.67,175.56,36.48929923]
[1736772102007,10.5096,175.67,175.56,36.48929923]
[1736772102208,2.6612,175.71,175.59,36.48929923]
[1736772102408,7.54,175.73,175.59,36.48929923]
[1736772102611,7.54,175.73,175.62,36.48929923]
[1736772102907,2.5097,175.75,175.62,36.48929923]
[1736772103111,2.6005,175.76,175.65,36.48929923]
[1736772103306,2.6005,175.76,175.68,36.48929923]
[1736772103608,2.6244,175.78,175.65,36.48929923]
[1736772103809,2.8482,175.75,175.71,2.8487]
[1736772104002,2.6244,175.78,175.65,36.48929923]
[1736772104506,2.6244,175.78,175.66,2.5963]
[1736772104706,2.6244,175.78,175.68,36.48929923]
[1736772105810,2.8483,175.75,175.71,2.8487]
[1736772106313,36.48929923,175.83,175.68,36.48929923]
[1736772106504,43.98929923,175.83,175.68,36.48929923]
[1736772106707,2.8474,175.8,175.76,2.8479]
[1736772106908,2.4619,175.84,175.71,36.48929923]
[1736772107105,2.4619,175.84,175.74,36.48929923]
[1736772107306,9.9446,175.85,175.8,2.8473]
[1736772107507,9.9446,175.85,175.71,36.48929923]
[1736772107707,2.4446,175.85,175.71,36.48929923]
[1736772107910,2.8477,175.79,175.74,2.8483]
[1736772108109,2.8477,175.79,175.67,9.0922]
[1736772108110,36.48929923,175.8,175.66,2.5963]
[1736772108313,36.48929923,175.77,175.62,36.48929923]
[1736772108511,2.8488,175.72,175.62,44.32794623]
[1736772109322,7.5,175.77,175.64,22.42723774]
[1736772109512,5.0699,175.79,175.67,22.42723774]
[1736772109908,5.0699,175.79,175.61,28.7753]
[1736772110111,5.0699,175.79,175.69,22.42723774]
[1736772110413,5.0699,175.79,175.66,22.42723774]
[1736772111014,5.0699,175.79,175.64,22.42723774]
[1736772111212,22.42723774,175.78,175.64,22.42723774]
[1736772111413,2.8485,175.74,175.64,22.42723774]
[1736772111711,5.0699,175.79,175.67,22.42723774]
[1736772112507,2.8479,175.78,175.7,2.8489]
[1736772112712,2.8479,175.78,175.67,22.42723774]
[1736772113205,2.8474,175.81,175.7,22.42723774]
[1736772113511,7.5,175.83,175.73,22.42723774]
[1736772113819,2.8476,175.79,175.73,22.42723774]
[1736772114416,2.8477,175.78,175.7,22.42723774]
[1736772114616,7.5,175.83,175.67,22.42723774]
[1736772114810,22.42723774,175.81,175.67,22.42723774]
[1736772115011,2.8482,175.76,175.72,2.8486]
[1736772115212,22.42723774,175.81,175.72,2.8486]
[1736772115613,22.42723774,175.81,175.73,2.8485]
[1736772115915,22.42723774,175.81,175.67,22.42723774]
[1736772116214,2.848,175.77,175.67,22.42723774]
[1736772116605,2.8478,175.78,175.74,2.8483]
[1736772117009,2.5397,175.82,175.67,22.42723774]
[1736772117209,2.8481,175.78,175.74,2.8486]
[1736772117614,9.9797,175.82,175.71,36.42776394]
[1736772117821,7.44,175.82,175.71,36.42776394]
[1736772118115,7.44,175.82,175.72,2.5947]
[1736772118316,7.44,175.82,175.68,36.42776394]
[1736772119408,7.44,175.82,175.73,36.42776394]
[1736772119717,46.31636394,175.87,175.73,36.42776394]
[1736772120014,36.42776394,175.84,175.65,2.5947]
[1736772120216,36.42776394,175.81,175.71,2.849]
[1736772120410,2.6914,175.8,175.65,39.02246394]
[1736772120816,2.8485,175.76,175.72,2.8489]
[1736772121110,2.6914,175.8,175.65,39.02246394]
[1736772121111,36.42776394,175.78,175.65,2.5947]
[1736772121314,7.42,175.79,175.65,2.8501]
[1736772121315,36.42776394,175.75,175.65,2.8501]
[1736772121505,36.42776394,175.72,175.59,36.42776394]
[1736772121711,7.42,175.71,175.59,36.42776394]
[1736772122215,7.42,175.71,175.56,40.59106394]
[1736772122419,36.42776394,175.69,175.56,2.5699]
[1736772122610,2.8506,175.62,175.58,2.8512]
[1736772123218,36.42776394,175.66,175.53,36.42776394]
[1736772123415,2.51,175.65,175.51,1.5934]
[1736772123922,2.4532,175.64,175.53,2.8519]
[1736772124214,2.4532,175.64,175.49,2.5699]
[1736772124215,43.86776394,175.63,175.49,2.5699]
[1736772124519,2.8513,175.58,175.49,2.5699]
[1736772125017,43.86776394,175.63,175.53,2.8521]
[1736772125210,43.86776394,175.63,175.49,2.5699]
[1736772125416,7.44,175.63,175.54,36.42776394]
[1736772125616,5.3602,175.65,175.59,2.851]
[1736772125812,7.44,175.69,175.57,36.42776394]
[1736772126211,7.44,175.69,175.62,2.8506]
[1736772126422,7.44,175.71,175.57,36.42776394]
[1736772126720,7.44,175.71,175.51,7.44]
[1736772126721,7.44,175.71,175.6,36.42776394]
[1736772126910,2.5518,175.75,175.63,36.42776394]
[1736772127315,2.8489,175.73,175.67,2.8498]
[1736772127520,2.5518,175.75,175.61,4.1726]
[1736772127821,36.42776394,175.74,175.61,4.1726]
[1736772128121,2.8494,175.7,175.64,2.8503]
[1736772128320,36.42776394,175.74,175.61,2.5771]
[1736772128519,36.42776394,175.71,175.57,36.42776394]
[1736772129417,2.8498,175.68,175.57,36.42776394]
[1736772129922,36.42776394,175.74,175.6,36.42776394]
[1736772130419,36.42776394,175.74,175.57,36.42776394]
[1736772130618,36.42776394,175.74,175.6,36.42776394]
[1736772130819,2.8487,175.74,175.63,36.42776394]
[1736772131023,9.9718,175.75,175.63,36.42776394]
[1736772131221,9.9718,175.75,175.61,2.5813]
[1736772131524,36.42776394,175.74,175.61,2.5813]
[1736772131920,2.8492,175.71,175.64,2.8501]
[1736772132119,36.42776394,175.74,175.61,2.5813]
[1736772132913,2.8495,175.69,175.65,2.85]
[1736772133221,36.42776394,175.74,175.59,36.42776394]
[1736772133425,2.8489,175.73,175.69,2.8494]
[1736772133624,2.8489,175.73,175.64,36.42776394]
[1736772133921,2.8489,175.73,175.68,2.8496]
[1736772134117,9.9718,175.75,175.64,36.42776394]
[1736772134323,2.8487,175.74,175.64,36.42776394]
[1736772134518,2.5518,175.75,175.64,36.42776394]
[1736772134519,2.5518,175.75,175.71,2.8491]
[1736772134722,2.5518,175.75,175.61,7.4]
[1736772134723,36.42776394,175.8,175.67,36.42776394]
[1736772135227,2.849,175.73,175.65,2.5972]
[1736772135419,36.42776394,175.8,175.65,2.5972]
[1736772135420,36.42776394,175.77,175.65,2.5972]
[1736772135926,2.8491,175.72,175.65,2.5972]
[1736772136318,2.5015,175.76,175.65,2.5972]
[1736772136519,2.849,175.72,175.68,2.8496]
[1736772136723,2.5015,175.76,175.65,2.5972]
[1736772138123,22.43168776,175.81,175.66,22.43168776]
[1736772138330,22.43168776,175.81,175.66,24.02448776]
[1736772138626,22.43168776,175.78,175.66,1.5928]
[1736772138823,22.43168776,175.78,175.65,2.5972]
[1736772139228,2.8489,175.73,175.69,2.8494]
[1736772139418,22.43168776,175.81,175.66,22.43168776]
[1736772139822,22.43168776,175.81,175.71,2.849]
[1736772140226,2.8482,175.77,175.73,2.8488]
[1736772140426,22.43168776,175.81,175.66,22.43168776]
[1736772140730,22.43168776,175.78,175.65,2.5972]
[1736772140929,2.8489,175.73,175.65,2.5972]
[1736772141328,2.8489,175.73,175.68,2.8495]
[1736772141524,2.8491,175.71,175.65,2.5972]
[1736772141732,2.8491,175.71,175.61,7.4]
[1736772141930,2.8491,175.71,175.67,2.8498]
[1736772142732,2.8491,175.71,175.6,4.1819]
[1736772142733,2.8495,175.69,175.65,2.85]
[1736772143026,5.1061,175.73,175.6,4.1819]
[1736772143238,2.8495,175.69,175.61,2.8507]
[1736772143433,5.1061,175.73,175.56,2.5417]
[1736772143827,2.849,175.72,175.68,2.8496]
[1736772144230,5.1061,175.73,175.56,2.5417]
[1736772144529,5.1061,175.73,175.62,22.43168776]
[1736772145235,2.8492,175.71,175.67,2.8497]
[1736772145928,5.1061,175.73,175.62,22.43168776]
[1736772145929,5.1061,175.73,175.68,2.8496]
[1736772146333,2.849,175.72,175.68,2.8496]
[1736772147034,2.6105,175.74,175.62,22.43168776]
[1736772147230,12.6164,175.79,175.65,22.43168776]
[1736772147426,15.0634,175.79,175.68,22.43168776]
[1736772147734,7.7634,175.79,175.68,22.43168776]
[1736772147935,7.7634,175.79,175.69,2.5588]
[1736772148229,2.447,175.79,175.71,22.43168776]
[1736772148431,25.11028776,175.86,175.71,22.43168776]
[1736772148733,2.8476,175.81,175.75,2.8485]
[1736772148934,2.447,175.85,175.71,22.43168776]
[1736772149332,2.8475,175.82,175.71,22.43168776]
[1736772149726,2.447,175.85,175.74,22.43168776]
[1736772150032,2.6378,175.89,175.77,22.43168776]
[1736772150740,9.7739,175.93,175.8,22.43168776]
[1736772151133,22.43168776,175.92,175.8,22.43168776]
[1736772151442,22.43168776,175.92,175.77,22.43168776]
[1736772151935,9.7739,175.93,175.8,22.43168776]
[1736772152133,7.28,175.93,175.8,22.43168776]
[1736772152337,2.6957,175.92,175.8,22.43168776]
[1736772153241,2.5386,175.95,175.83,22.43168776]
[1736772153436,2.6965,175.96,175.91,2.8459]
[1736772153632,2.6957,176.02,175.91,2.8459]
[1736772153633,7.28,176.0,175.91,2.8459]
[1736772153829,9.7493,176.01,175.91,2.8459]
[1736772154037,2.8451,175.97,175.92,2.8457]
[1736772154741,2.4693,176.01,175.94,2.8454]
[1736772154742,2.8447,175.99,175.94,2.8454]
[1736772154939,2.4693,176.01,175.89,22.43168776]
[1736772155238,2.6957,176.02,175.92,22.43168776]
[1736772155432,2.8438,176.05,175.95,22.43168776]
[1736772155638,22.43168776,176.12,175.95,22.43168776]
[1736772155932,22.43168776,176.06,175.92,22.43168776]
[1736772156134,22.43168776,176.06,175.89,2.5713]
[1736772156135,22.43168776,176.03,175.89,2.5713]
[1736772156344,22.43168776,176.0,175.83,1.5955]
[1736772156645,22.43168776,176.0,175.84,22.43168776]
[1736772156837,2.8455,175.95,175.88,2.8464]
[1736772157044,22.43168776,176.0,175.84,22.43168776]
[1736772157543,22.43168776,176.0,175.87,22.43168776]
[1736772157749,12.4689,176.02,175.9,22.43168776]
[1736772157941,2.8446,176.0,175.94,2.8454]
[1736772158141,12.4689,176.02,175.9,22.43168776]
[1736772158644,5.2089,176.02,175.93,22.43168776]
[1736772158845,2.5944,176.02,175.93,22.43168776]
[1736772159145,9.8625,176.05,175.96,22.43168776]
[1736772159336,2.6025,176.05,175.96,22.43168776]
[1736772159740,5.4462,176.05,176.0,2.8444]
[1736772159937,7.26,176.09,175.96,22.43168776]
[1736772160539,2.8435,176.06,176.0,2.8443]
[1736772160938,2.8435,176.06,175.96,22.43168776]
[1736772161136,2.8433,176.08,175.96,22.43168776]
[1736772161337,5.1077,176.11,175.99,22.43168776]
[1736772161748,2.843,176.09,176.04,2.8438]
[1736772162747,5.1077,176.11,176.01,2.8443]
[1736772163048,5.1077,176.11,175.97,2.5901]
[1736772163842,2.843,176.1,176.04,2.8437]
[1736772164042,5.1077,176.11,175.97,2.5901]
[1736772164247,5.1077,176.11,176.01,2.8443]
[1736772164248,2.8436,176.06,176.01,2.8443]
[1736772165450,12.3477,176.11,175.97,2.5901]
[1736772165651,5.1077,176.11,176.01,22.43168776]
[1736772166146,5.1077,176.11,175.97,2.5901]
[1736772166347,2.8431,176.09,176.03,2.8438]
[1736772166554,5.1077,176.11,176.01,22.43168776]
[1736772167350,2.4832,176.12,176.01,22.43168776]
[1736772167556,2.4832,176.12,176.04,22.43168776]
[1736772168251,7.26,176.16,176.04,22.43168776]
[1736772168552,2.6064,176.18,176.07,22.43168776]
[1736772168745,2.842,176.16,176.07,22.43168776]
[1736772169344,2.842,176.16,176.11,2.8426]
[1736772169547,5.1123,176.2,176.1,22.43168776]
[1736772170458,2.6064,176.23,176.06,2.4903]
[1736772170656,2.6064,176.23,176.16,22.43168776]
[1736772171254,2.8414,176.2,176.14,2.8422]
[1736772171447,2.6064,176.23,176.14,2.8422]
[1736772171852,2.6064,176.23,176.14,2.8424]
[1736772173257,2.8418,176.19,176.14,2.8424]
[1736772173553,2.6064,176.23,176.14,2.8424]
[1736772173752,2.8418,176.18,176.14,2.8424]
[1736772173952,2.6064,176.23,176.14,2.8424]
[1736772174153,2.8416,176.2,176.15,2.8422]
[1736772174353,2.6064,176.23,176.13,22.43168776]
[1736772174754,2.8414,176.21,176.16,2.8421]
[1736772176063,2.8412,176.22,176.15,22.43168776]
[1736772176557,2.6064,176.23,176.14,2.8423]
[1736772176759,2.8415,176.2,176.12,22.43168776]
[1736772176957,2.6064,176.23,176.15,22.43168776]
[1736772177264,2.6064,176.23,176.12,22.43168776]
[1736772177454,2.6064,176.23,176.06,13.51249525]
[1736772177655,2.6064,176.23,176.12,22.43168776]
[1736772177959,2.6064,176.23,176.15,2.8423]
[1736772178160,2.6064,176.23,176.12,22.43168776]
[1736772178461,2.8415,176.2,176.16,2.8421]
[1736772178660,2.6064,176.23,176.12,22.43168776]
[1736772179160,2.6064,176.23,176.13,2.8426]
[1736772179363,2.6064,176.23,176.12,22.43168776]
[1736772179555,2.8419,176.18,176.12,22.43168776]
[1736772179753,2.8419,176.18,176.13,2.8425]
[1736772179961,2.8419,176.18,176.12,22.43168776]
[1736772180161,2.8419,176.18,176.14,2.8424]
[1736772180362,2.8415,176.21,176.12,22.43168776]
[1736772180552,2.6064,176.23,176.12,22.43168776]
[1736772181453,5.4474,176.23,176.12,22.43168776]
[1736772181662,5.4474,176.23,176.15,22.43168776]
[1736772181862,5.4474,176.23,176.19,2.8416]
[1736772182053,2.841,176.24,176.19,2.8416]
[1736772182253,7.2,176.27,176.21,2.8413]
[1736772182458,7.2,176.27,176.13,22.43168776]
[1736772182459,5.0573,176.28,176.18,22.43168776]
[1736772182663,5.0573,176.28,176.21,22.43168776]
[1736772182962,3.1719,176.29,176.21,22.43168776]
[1736772183161,2.8403,176.28,176.21,22.43168776]
[1736772183361,3.1719,176.29,176.18,25.27348776]
[1736772183561,3.1719,176.29,176.15,22.43168776]
[1736772183762,2.8415,176.21,176.15,22.43168776]
[1736772183958,3.1719,176.29,176.18,2.8418]
[1736772184365,3.1719,176.29,176.15,22.43168776]
[1736772184564,22.43168776,176.27,176.15,22.43168776]
[1736772184862,3.1719,176.29,176.12,22.43168776]
[1736772185055,22.43168776,176.24,176.1,3.0889]
[1736772185262,13.5331,176.23,176.1,3.0889]
[1736772185960,2.8421,176.17,176.13,2.8426]
[1736772186166,13.5331,176.23,176.09,22.43168776]
[1736772186465,2.8414,176.21,176.12,22.43168776]
[1736772186663,2.8414,176.21,176.17,2.842]
[1736772186862,6.3331,176.23,176.12,22.43168776]
[1736772187261,6.3331,176.23,176.16,2.8421]
[1736772187664,6.3331,176.23,176.12,39.10007279]
[1736772187856,36.25727279,176.21,176.06,14.20969525]
[1736772188055,2.8424,176.15,176.06,14.20969525]
[1736772188257,2.8424,176.15,176.11,2.8429]
[1736772188759,2.8424,176.15,176.06,14.20969525]
[1736772188960,2.8425,176.14,176.1,2.843]
[1736772189158,3.1273,176.2,176.06,50.46696804]
[1736772189362,3.1273,176.2,176.1,2.8431]
[1736772189958,2.8424,176.15,176.1,2.8431]
[1736772190168,3.1273,176.2,176.1,2.8431]
[1736772190364,3.1273,176.2,176.06,50.46696804]
[1736772190568,2.8423,176.16,176.06,50.46696804]
[1736772191465,7.18,176.17,176.06,47.27946804]
[1736772191668,7.18,176.17,176.06,11.02219525]
[1736772191864,2.8435,176.08,176.06,11.02219525]
[1736772192067,36.25727279,176.15,176.06,11.02219525]
[1736772192268,3.3136,176.14,176.0,36.25727279]
[1736772192467,6.5572,176.14,176.0,36.25727279]
[1736772192671,6.5572,176.14,176.03,36.25727279]
[1736772193364,6.5572,176.14,175.97,14.10144829]
[1736772193365,6.5572,176.14,176.0,36.25727279]
[1736772193970,2.8431,176.1,176.02,2.8444]
[1736772194166,6.5572,176.14,176.0,36.25727279]
[1736772194564,36.25727279,176.12,175.97,42.63357279]
[1736772194764,3.097,176.11,175.97,36.25727279]
[1736772195666,2.8436,176.07,175.98,2.8449]
[1736772195968,3.097,176.11,176.0,36.25727279]
[1736772196861,2.8431,176.1,176.0,36.25727279]
[1736772197060,3.097,176.11,176.03,36.25727279]
[1736772197259,7.18,176.13,176.03,36.25727279]
[1736772197570,3.097,176.17,176.06,36.25727279]
[1736772198667,2.8423,176.16,176.1,2.8431]
[1736772198865,2.8423,176.16,176.06,36.25727279]
[1736772199171,3.097,176.17,176.09,36.25727279]
[1736772199471,7.16,176.18,176.09,36.25727279]
[1736772199673,3.1284,176.21,176.12,36.25727279]
[1736772200174,15.12683204,176.24,176.12,36.25727279]
[1736772200568,6.2934,176.24,176.12,36.25727279]
[1736772200768,2.8412,176.22,176.12,36.25727279]
[1736772201162,6.2934,176.24,176.18,2.8417]
[1736772201163,6.0152,176.24,176.18,2.8417]
[1736772201367,6.0152,176.24,176.15,36.25727279]
[1736772201666,7.14,176.27,176.18,36.25727279]
[1736772201868,2.8406,176.26,176.21,2.8413]
[1736772202069,6.3795,176.3,176.21,36.25727279]
[1736772202270,2.8402,176.29,176.24,2.8408]
[1736772202969,2.8402,176.28,176.23,2.841]
[1736772203866,2.8401,176.29,176.24,2.8408]
[1736772205074,2.84,176.3,176.25,2.8407]
[1736772205280,2.84,176.3,176.21,36.25727279]
[1736772206173,2.84,176.3,176.24,2.8407]
[1736772206375,2.84,176.3,176.21,36.25727279]
[1736772206575,3.2121,176.35,176.24,36.25727279]
[1736772206769,2.8397,176.31,176.26,2.8405]
[1736772207376,3.2121,176.35,176.24,36.25727279]
[1736772208775,3.2121,176.35,176.27,36.25727279]
[1736772208972,7.12,176.37,176.27,36.25727279]
[1736772209178,2.8394,176.34,176.29,2.84]
[1736772209480,10.4319,176.39,176.27,22.27524578]
[1736772209680,2.8391,176.35,176.3,2.8397]
[1736772209882,3.3319,176.39,176.3,22.27524578]
[1736772210077,22.27524578,176.45,176.3,22.27524578]
[1736772210278,13.532,176.44,176.3,22.27524578]
[1736772211173,6.432,176.44,176.3,22.27524578]
[1736772211373,2.8382,176.41,176.35,2.839]
[1736772211877,2.8382,176.41,176.33,22.27524578]
[1736772212074,2.8384,176.4,176.35,2.8392]
[1736772212277,13.552,176.44,176.3,22.27524578]
[1736772212783,2.8384,176.4,176.31,2.8398]
[1736772212976,22.27524578,176.42,176.31,2.8398]
[1736772213181,22.27524578,176.39,176.24,24.47924578]
[1736772213374,22.27524578,176.42,176.27,22.27524578]
[1736772213573,13.552,176.44,176.3,22.27524578]
[1736772213882,2.8385,176.41,176.36,2.8392]
[1736772214084,2.8385,176.41,176.33,22.27524578]
[1736772214384,13.552,176.44,176.33,22.27524578]
[1736772214981,2.8382,176.42,176.33,22.27524578]
[1736772215181,6.432,176.44,176.33,22.27524578]
[1736772215380,3.2776,176.44,176.36,22.27524578]
[1736772215578,7.1,176.47,176.36,22.27524578]
[1736772215979,7.1,176.47,176.34,6.4905]
[1736772216483,7.1,176.47,176.37,2.8388]
[1736772216673,7.1,176.47,176.3,22.27524578]
[1736772216879,2.8382,176.41,176.3,22.27524578]
[1736772217092,22.27524578,176.45,176.33,2.8394]
[1736772217684,22.27524578,176.42,176.27,22.27524578]
[1736772217882,22.27524578,176.42,176.3,22.27524578]
[1736772218284,2.8387,176.38,176.3,22.27524578]
[1736772218584,22.27524578,176.45,176.3,22.27524578]
[1736772218784,22.27524578,176.45,176.35,2.8391]
[1736772218981,225.86304578,176.48,176.33,22.27524578]
[1736772219181,7.08,176.45,176.33,22.27524578]
[1736772219385,2.8381,176.42,176.37,2.8387]
[1736772220078,2.8379,176.43,176.37,2.8387]
[1736772220284,7.08,176.45,176.37,2.8387]
[1736772220483,29.35524578,176.45,176.33,22.27524578]
[1736772220685,2.8386,176.39,176.33,22.27524578]